[Event "Titled Tuesday Blitz July 4 Early 2023"]
[White "Fernandez Hernandez, Gerardo"]
[Black "Trifan, Andrei Ioan"]
[WhiteFideId "2207400"]
[BlackFideId "12967068"]
[WhiteElo "2206"]
[BlackElo "2532"]
[Result "0-1"]
[Round "3"]
[TimeControl "180+2"]
[Date "2023.07.04"]
[WhiteClock "0:00:00"]
[BlackClock "0:00:19"]
[Board "160"]

1. e4 {[%clk 0:03:00]}  e5 {[%clk 0:02:58]} 2. Bc4 {[%clk 0:03:00]}  Nf6 {[%clk 0:02:55]} 3. d3 {[%clk 0:02:59]}  Bc5 {[%clk 0:02:54]} 4. Nc3 {[%clk 0:02:59]}  a6 {[%clk 0:02:48]} 5. f4 {[%clk 0:02:55]}  d6 {[%clk 0:02:48]} 6. Nf3 {[%clk 0:02:53]}  Nc6 {[%clk 0:02:48]} 7. f5 {[%clk 0:02:50]}  h6 {[%clk 0:02:44]} 8. Qe2 {[%clk 0:02:38]}  b5 {[%clk 0:02:31]} 9. Bb3 {[%clk 0:02:25]}  Na5 {[%clk 0:02:10]} 10. Be3 {[%clk 0:02:20]}  Bxe3 {[%clk 0:02:07]} 11. Qxe3 {[%clk 0:02:18]}  c5 {[%clk 0:02:00]} 12. Bd5 {[%clk 0:02:05]}  Nxd5 {[%clk 0:01:53]} 13. Nxd5 {[%clk 0:02:06]}  Bb7 {[%clk 0:01:51]} 14. c3 {[%clk 0:01:33]}  Bxd5 {[%clk 0:01:49]} 15. exd5 {[%clk 0:01:33]}  O-O {[%clk 0:01:34]} 16. O-O {[%clk 0:01:32]}  Qf6 {[%clk 0:01:34]} 17. Nd2 {[%clk 0:01:31]}  Qg5 {[%clk 0:01:29]} 18. Qxg5 {[%clk 0:01:31]}  hxg5 {[%clk 0:01:30]} 19. Ne4 {[%clk 0:01:31]}  f6 {[%clk 0:01:28]} 20. Nxd6 {[%clk 0:01:16]}  Rad8 {[%clk 0:01:12]} 21. Ne4 {[%clk 0:01:15]}  Rxd5 {[%clk 0:01:12]} 22. Rf3 {[%clk 0:01:10]}  Rfd8 {[%clk 0:01:11]} 23. Nf2 {[%clk 0:01:08]}  c4 {[%clk 0:01:08]} 24. Rd1 {[%clk 0:01:03]}  Nc6 {[%clk 0:00:57]} 25. Kf1 {[%clk 0:00:56]}  e4 {[%clk 0:00:54]} 26. Nxe4 {[%clk 0:00:50]}  Ne5 {[%clk 0:00:55]} 27. Re3 {[%clk 0:00:38]}  Nxd3 {[%clk 0:00:52]} 28. g4 {[%clk 0:00:29]}  Re5 {[%clk 0:00:40]} 29. Rd2 {[%clk 0:00:15]}  Rde8 {[%clk 0:00:39]} 30. Rde2 {[%clk 0:00:12]}  Nc1 {[%clk 0:00:23]} 31. Re1 {[%clk 0:00:08]}  Nd3 {[%clk 0:00:19]} 32. R1e2 {[%clk 0:00:08]}  Kf8 {[%clk 0:00:19]} 33. b3 {[%clk 0:00:05]}  Nf4 {[%clk 0:00:19]} 34. Re1 {[%clk 0:00:03]}  Nd5 {[%clk 0:00:19]} 35. R3e2 {[%clk 0:00:01]}  cxb3 {[%clk 0:00:19]} 36. axb3 {[%clk 0:00:01]}  Nf4 {[%clk 0:00:19]} 37. Re3 {[%clk 0:00:00]}  a5 {[%clk 0:00:19]} 0-1


[Site "https://www.chess.com"]

[Event "Titled Tuesday Blitz July 4 Early 2023"]
[White "Lisjak, Zlatko"]
[Black "ElDivis"]
[WhiteFideId "14502186"]
[WhiteElo "2131"]
[BlackElo "2531"]
[Result "0-1"]
[Round "3"]
[TimeControl "180+2"]
[Date "2023.07.04"]
[WhiteClock "0:00:00"]
[BlackClock "0:00:07"]
[Board "161"]

1. d4 {[%clk 0:03:00]}  Nf6 {[%clk 0:02:58]} 2. Nc3 {[%clk 0:02:59]}  d5 {[%clk 0:02:58]} 3. Bf4 {[%clk 0:02:58]}  e6 {[%clk 0:02:51]} 4. e3 {[%clk 0:02:56]}  Bb4 {[%clk 0:02:48]} 5. Ne2 {[%clk 0:02:45]}  O-O {[%clk 0:02:46]} 6. a3 {[%clk 0:02:42]}  Be7 {[%clk 0:02:39]} 7. Qd2 {[%clk 0:02:25]}  c5 {[%clk 0:02:37]} 8. g4 {[%clk 0:02:14]}  Nxg4 {[%clk 0:02:30]} 9. Rg1 {[%clk 0:02:12]}  f5 {[%clk 0:02:09]} 10. h3 {[%clk 0:02:05]}  Nf6 {[%clk 0:02:08]} 11. dxc5 {[%clk 0:01:54]}  Bxc5 {[%clk 0:02:04]} 12. O-O-O {[%clk 0:01:45]}  Nc6 {[%clk 0:02:02]} 13. Na4 {[%clk 0:01:28]}  Be7 {[%clk 0:01:28]} 14. Nd4 {[%clk 0:01:22]}  Ne4 {[%clk 0:01:21]} 15. Qe1 {[%clk 0:01:21]}  Nxd4 {[%clk 0:01:11]} 16. exd4 {[%clk 0:01:17]}  Bh4 {[%clk 0:00:55]} 17. Rg2 {[%clk 0:01:06]}  Bd7 {[%clk 0:00:41]} 18. Nc5 {[%clk 0:01:02]}  b6 {[%clk 0:00:40]} 19. Nxe4 {[%clk 0:00:55]}  fxe4 {[%clk 0:00:41]} 20. Be5 {[%clk 0:00:55]}  Rf7 {[%clk 0:00:39]} 21. Qe3 {[%clk 0:00:50]}  Qf8 {[%clk 0:00:33]} 22. Rd2 {[%clk 0:00:44]}  Bf6 {[%clk 0:00:32]} 23. Qg3 {[%clk 0:00:38]}  Bxe5 {[%clk 0:00:31]} 24. Qxe5 {[%clk 0:00:38]}  Rc8 {[%clk 0:00:31]} 25. Kb1 {[%clk 0:00:36]}  Rf6 {[%clk 0:00:28]} 26. Be2 {[%clk 0:00:26]}  Rf5 {[%clk 0:00:28]} 27. Qg3 {[%clk 0:00:24]}  Rf4 {[%clk 0:00:23]} 28. Bg4 {[%clk 0:00:23]}  Qf6 {[%clk 0:00:23]} 29. h4 {[%clk 0:00:20]}  Rf8 {[%clk 0:00:22]} 30. Ka2 {[%clk 0:00:18]}  Bb5 {[%clk 0:00:22]} 31. h5 {[%clk 0:00:14]}  Bf1 {[%clk 0:00:22]} 32. Rg1 {[%clk 0:00:11]}  Rxf2 {[%clk 0:00:22]} 33. h6 {[%clk 0:00:09]}  g6 {[%clk 0:00:17]} 34. Bxe6+ {[%clk 0:00:07]}  Kh8 {[%clk 0:00:10]} 35. Rxf2 {[%clk 0:00:03]}  Qxf2 {[%clk 0:00:11]} 36. Qe5+ {[%clk 0:00:00]}  Rf6 {[%clk 0:00:07]} 0-1


[Site "https://www.chess.com"]

[Event "Titled Tuesday Blitz July 4 Early 2023"]
[White "Goughfather"]
[Black "robertoalejandro10"]
[WhiteElo "2046"]
[BlackElo "2530"]
[Result "0-1"]
[Round "3"]
[TimeControl "180+2"]
[Date "2023.07.04"]
[WhiteClock "0:00:00"]
[BlackClock "0:00:15"]
[Board "165"]

1. d4 {[%clk 0:03:00]}  Nf6 {[%clk 0:02:58]} 2. Nc3 {[%clk 0:03:00]}  c5 {[%clk 0:02:48]} 3. d5 {[%clk 0:02:58]}  d6 {[%clk 0:02:49]} 4. e4 {[%clk 0:02:57]}  g6 {[%clk 0:02:49]} 5. Nf3 {[%clk 0:02:48]}  Bg7 {[%clk 0:02:49]} 6. Be3 {[%clk 0:02:44]}  O-O {[%clk 0:02:47]} 7. Qd2 {[%clk 0:02:43]}  b5 {[%clk 0:02:39]} 8. Bxb5 {[%clk 0:02:32]}  Qb6 {[%clk 0:02:39]} 9. Be2 {[%clk 0:02:12]}  Qxb2 {[%clk 0:01:42]} 10. Rb1 {[%clk 0:02:11]}  Nxe4 {[%clk 0:01:39]} 11. Rxb2 {[%clk 0:01:15]}  Bxc3 {[%clk 0:01:38]} 12. Qxc3 {[%clk 0:00:57]}  Nxc3 {[%clk 0:01:39]} 13. Bc4 {[%clk 0:00:57]}  Na4 {[%clk 0:01:24]} 14. Rb1 {[%clk 0:00:37]}  Nb6 {[%clk 0:01:23]} 15. Bb3 {[%clk 0:00:32]}  N8d7 {[%clk 0:01:05]} 16. Nd2 {[%clk 0:00:20]}  Nf6 {[%clk 0:00:37]} 17. c4 {[%clk 0:00:14]}  Bf5 {[%clk 0:00:37]} 18. Rb2 {[%clk 0:00:13]}  Bd3 {[%clk 0:00:37]} 19. f3 {[%clk 0:00:10]}  a5 {[%clk 0:00:32]} 20. a3 {[%clk 0:00:09]}  Rfb8 {[%clk 0:00:31]} 21. Ba2 {[%clk 0:00:09]}  Na4 {[%clk 0:00:28]} 22. Rxb8+ {[%clk 0:00:08]}  Rxb8 {[%clk 0:00:28]} 23. Kf2 {[%clk 0:00:06]}  Rb2 {[%clk 0:00:24]} 24. Bb1 {[%clk 0:00:06]}  Bxc4 {[%clk 0:00:17]} 25. Kg3 {[%clk 0:00:06]}  Bxd5 {[%clk 0:00:16]} 26. Ne4 {[%clk 0:00:04]}  Bxe4 {[%clk 0:00:15]} 27. Bxe4 {[%clk 0:00:04]}  Nxe4+ {[%clk 0:00:15]} 28. fxe4 {[%clk 0:00:05]}  Rb3 {[%clk 0:00:15]} 29. Kf3 {[%clk 0:00:04]}  Nb2 {[%clk 0:00:15]} 30. Rb1 {[%clk 0:00:00]}  a4 {[%clk 0:00:15]} 0-1


[Site "https://www.chess.com"]

[Event "Titled Tuesday Blitz July 4 Early 2023"]
[White "Papayan, Oleg"]
[Black "Skiadopoulos, Nikolaos"]
[WhiteFideId "4193911"]
[BlackFideId "4200772"]
[WhiteElo "2529"]
[BlackElo "1888"]
[Result "1-0"]
[Round "3"]
[TimeControl "180+2"]
[Date "2023.07.04"]
[WhiteClock "0:00:56"]
[BlackClock "0:00:00"]
[Board "166"]

1. e4 {[%clk 0:03:00]}  c5 {[%clk 0:02:59]} 2. d4 {[%clk 0:02:59]}  cxd4 {[%clk 0:02:59]} 3. Qxd4 {[%clk 0:02:59]}  Nc6 {[%clk 0:02:58]} 4. Qd3 {[%clk 0:03:00]}  g6 {[%clk 0:02:57]} 5. Nc3 {[%clk 0:03:00]}  Bg7 {[%clk 0:02:57]} 6. Nf3 {[%clk 0:03:01]}  d6 {[%clk 0:02:55]} 7. Be2 {[%clk 0:03:01]}  Nf6 {[%clk 0:02:55]} 8. O-O {[%clk 0:03:02]}  O-O {[%clk 0:02:55]} 9. Nd5 {[%clk 0:03:03]}  Nxd5 {[%clk 0:02:39]} 10. exd5 {[%clk 0:03:02]}  Ne5 {[%clk 0:02:38]} 11. Nxe5 {[%clk 0:03:00]}  dxe5 {[%clk 0:02:38]} 12. c3 {[%clk 0:03:00]}  Bf5 {[%clk 0:02:34]} 13. Qb5 {[%clk 0:02:59]}  Qc7 {[%clk 0:02:29]} 14. Be3 {[%clk 0:02:53]}  a6 {[%clk 0:02:28]} 15. Qb6 {[%clk 0:02:44]}  Qd7 {[%clk 0:02:18]} 16. Rfd1 {[%clk 0:02:35]}  h5 {[%clk 0:02:07]} 17. c4 {[%clk 0:02:33]}  h4 {[%clk 0:02:04]} 18. c5 {[%clk 0:02:30]}  h3 {[%clk 0:02:00]} 19. c6 {[%clk 0:02:27]}  bxc6 {[%clk 0:01:59]} 20. dxc6 {[%clk 0:02:28]}  Qe6 {[%clk 0:01:57]} 21. c7 {[%clk 0:02:21]}  hxg2 {[%clk 0:01:42]} 22. Qxe6 {[%clk 0:02:07]}  Bxe6 {[%clk 0:01:41]} 23. Bf3 {[%clk 0:02:00]}  Rac8 {[%clk 0:01:35]} 24. Bb6 {[%clk 0:02:00]}  e4 {[%clk 0:01:21]} 25. Bxe4 {[%clk 0:02:00]}  Bxb2 {[%clk 0:01:21]} 26. Rab1 {[%clk 0:02:01]}  Be5 {[%clk 0:01:15]} 27. Rbc1 {[%clk 0:01:42]}  Bf4 {[%clk 0:01:10]} 28. Rc2 {[%clk 0:01:34]}  Kg7 {[%clk 0:00:52]} 29. Rd8 {[%clk 0:01:31]}  Bxc7 {[%clk 0:00:35]} 30. Rxc8 {[%clk 0:01:26]}  Bxh2+ {[%clk 0:00:31]} 31. Kxh2 {[%clk 0:01:25]}  Bxc8 {[%clk 0:00:29]} 32. Kxg2 {[%clk 0:01:15]}  e5 {[%clk 0:00:23]} 33. Rc7 {[%clk 0:01:13]}  Be6 {[%clk 0:00:19]} 34. a4 {[%clk 0:01:10]}  Kf6 {[%clk 0:00:11]} 35. a5 {[%clk 0:01:09]}  Kg5 {[%clk 0:00:11]} 36. Be3+ {[%clk 0:01:07]}  Kg4 {[%clk 0:00:08]} 37. Rc6 {[%clk 0:01:02]}  Re8 {[%clk 0:00:04]} 38. Rxa6 {[%clk 0:01:00]}  f5 {[%clk 0:00:04]} 39. Bf3+ {[%clk 0:01:01]}  Kh4 {[%clk 0:00:04]} 40. Ra7 {[%clk 0:01:00]}  f4 {[%clk 0:00:00]} 41. Bc5 {[%clk 0:00:56]} 1-0


[Site "https://www.chess.com"]

[Event "Titled Tuesday Blitz July 4 Early 2023"]
[White "Taboas Rodriguez, Daniel"]
[Black "Demchenko, Anton"]
[WhiteFideId "2208466"]
[BlackFideId "4160258"]
[WhiteElo "2433"]
[BlackElo "2872"]
[Result "0-1"]
[Round "3"]
[TimeControl "180+2"]
[Date "2023.07.04"]
[WhiteClock "0:00:37"]
[BlackClock "0:01:53"]
[Board "169"]

1. d4 {[%clk 0:03:00]}  Nf6 {[%clk 0:02:50]} 2. Nf3 {[%clk 0:02:58]}  d6 {[%clk 0:02:51]} 3. c4 {[%clk 0:02:58]}  Nc6 {[%clk 0:02:50]} 4. d5 {[%clk 0:02:57]}  Ne5 {[%clk 0:02:50]} 5. Nxe5 {[%clk 0:02:58]}  dxe5 {[%clk 0:02:50]} 6. Nc3 {[%clk 0:02:58]}  e6 {[%clk 0:02:51]} 7. e4 {[%clk 0:02:59]}  Bc5 {[%clk 0:02:52]} 8. Be2 {[%clk 0:02:54]}  O-O {[%clk 0:02:52]} 9. O-O {[%clk 0:02:53]}  c6 {[%clk 0:02:53]} 10. dxc6 {[%clk 0:02:52]}  bxc6 {[%clk 0:02:52]} 11. Qxd8 {[%clk 0:02:43]}  Rxd8 {[%clk 0:02:51]} 12. Rd1 {[%clk 0:02:44]}  Bd4 {[%clk 0:02:47]} 13. Bd2 {[%clk 0:02:40]}  Rb8 {[%clk 0:02:43]} 14. b3 {[%clk 0:02:38]}  Bb7 {[%clk 0:02:39]} 15. Kf1 {[%clk 0:02:37]}  c5 {[%clk 0:02:29]} 16. f3 {[%clk 0:02:32]}  a6 {[%clk 0:02:28]} 17. Rac1 {[%clk 0:02:31]}  Ne8 {[%clk 0:02:25]} 18. Na4 {[%clk 0:02:30]}  Bc6 {[%clk 0:02:23]} 19. Ba5 {[%clk 0:02:30]}  Rd7 {[%clk 0:02:20]} 20. Nc3 {[%clk 0:02:18]}  f5 {[%clk 0:02:16]} 21. Bd3 {[%clk 0:02:16]}  Nd6 {[%clk 0:02:15]} 22. Ke2 {[%clk 0:02:13]}  Rf7 {[%clk 0:02:13]} 23. Rf1 {[%clk 0:02:07]}  h5 {[%clk 0:02:03]} 24. Rce1 {[%clk 0:01:55]}  h4 {[%clk 0:01:59]} 25. Kd2 {[%clk 0:01:40]}  Rbf8 {[%clk 0:01:54]} 26. Ke2 {[%clk 0:00:37]}  Nb7 {[%clk 0:01:53]} 0-1


[Site "https://www.chess.com"]

[Event "Titled Tuesday Blitz July 4 Early 2023"]
[White "Avazkhonov, Alikhon"]
[Black "Weetik, Vjacheslav"]
[WhiteFideId "14208504"]
[BlackFideId "4153472"]
[WhiteElo "2415"]
[BlackElo "2748"]
[Result "1-0"]
[Round "3"]
[TimeControl "180+2"]
[Date "2023.07.04"]
[WhiteClock "0:00:06"]
[BlackClock "0:00:00"]
[Board "170"]

1. d4 {[%clk 0:03:00]}  Nf6 {[%clk 0:02:59]} 2. c4 {[%clk 0:03:00]}  g6 {[%clk 0:02:59]} 3. Nc3 {[%clk 0:03:01]}  Bg7 {[%clk 0:02:59]} 4. e4 {[%clk 0:03:01]}  d6 {[%clk 0:02:57]} 5. f3 {[%clk 0:03:02]}  O-O {[%clk 0:02:55]} 6. Be3 {[%clk 0:03:02]}  c5 {[%clk 0:02:54]} 7. Nge2 {[%clk 0:02:59]}  Nc6 {[%clk 0:02:54]} 8. d5 {[%clk 0:02:54]}  Ne5 {[%clk 0:02:53]} 9. Ng3 {[%clk 0:02:55]}  e6 {[%clk 0:02:53]} 10. Qd2 {[%clk 0:02:55]}  h5 {[%clk 0:02:34]} 11. Be2 {[%clk 0:02:54]}  h4 {[%clk 0:02:31]} 12. Nf1 {[%clk 0:02:54]}  b5 {[%clk 0:02:26]} 13. cxb5 {[%clk 0:02:45]}  exd5 {[%clk 0:02:25]} 14. exd5 {[%clk 0:02:38]}  h3 {[%clk 0:02:18]} 15. g4 {[%clk 0:02:38]}  a6 {[%clk 0:02:09]} 16. Ng3 {[%clk 0:02:34]}  axb5 {[%clk 0:02:05]} 17. Nxb5 {[%clk 0:02:34]}  Ba6 {[%clk 0:01:50]} 18. Nc3 {[%clk 0:02:23]}  Nc4 {[%clk 0:01:35]} 19. Bxc4 {[%clk 0:02:21]}  Bxc4 {[%clk 0:01:36]} 20. Kf2 {[%clk 0:02:15]}  Qa5 {[%clk 0:01:26]} 21. b3 {[%clk 0:02:00]}  Nxd5 {[%clk 0:01:18]} 22. bxc4 {[%clk 0:01:30]}  Nxe3 {[%clk 0:00:55]} 23. Nge4 {[%clk 0:00:27]}  Nxc4 {[%clk 0:00:52]} 24. Qd3 {[%clk 0:00:28]}  Bd4+ {[%clk 0:00:47]} 25. Kg3 {[%clk 0:00:27]}  Ne5 {[%clk 0:00:37]} 26. Qd2 {[%clk 0:00:27]}  d5 {[%clk 0:00:29]} 27. Nf6+ {[%clk 0:00:07]}  Kg7 {[%clk 0:00:25]} 28. Qg5 {[%clk 0:00:08]}  Rh8 {[%clk 0:00:10]} 29. Ncxd5 {[%clk 0:00:06]}  Bxa1 {[%clk 0:00:03]} 30. Rb1 {[%clk 0:00:06]}  Bd4 {[%clk 0:00:03]} 31. Nh5+ {[%clk 0:00:06]}  Rxh5 {[%clk 0:00:02]} 32. gxh5 {[%clk 0:00:07]}  Rh8 {[%clk 0:00:02]} 33. Qf6+ {[%clk 0:00:06]}  Kh7 {[%clk 0:00:00]} 34. hxg6+ {[%clk 0:00:06]} 1-0


[Site "https://www.chess.com"]

[Event "Titled Tuesday Blitz July 4 Early 2023"]
[White "cafu1950"]
[Black "Gaal, Zsoka"]
[BlackFideId "777765"]
[WhiteElo "2600"]
[BlackElo "2364"]
[Result "1-0"]
[Round "3"]
[TimeControl "180+2"]
[Date "2023.07.04"]
[WhiteClock "0:02:01"]
[BlackClock "0:00:25"]
[Board "174"]

1. d4 {[%clk 0:03:00]}  f5 {[%clk 0:02:59]} 2. Nc3 {[%clk 0:03:01]}  Nf6 {[%clk 0:02:59]} 3. g4 {[%clk 0:03:01]}  Nxg4 {[%clk 0:02:42]} 4. e4 {[%clk 0:02:59]}  e5 {[%clk 0:02:42]} 5. exf5 {[%clk 0:02:56]}  exd4 {[%clk 0:02:19]} 6. Qxg4 {[%clk 0:02:49]}  dxc3 {[%clk 0:02:18]} 7. Qh5+ {[%clk 0:02:49]}  g6 {[%clk 0:02:07]} 8. fxg6 {[%clk 0:02:46]}  Qe7+ {[%clk 0:01:49]} 9. Be2 {[%clk 0:02:43]}  hxg6 {[%clk 0:01:47]} 10. Qxg6+ {[%clk 0:02:44]}  Qf7 {[%clk 0:01:47]} 11. Qxf7+ {[%clk 0:02:44]}  Kxf7 {[%clk 0:01:47]} 12. Bc4+ {[%clk 0:02:41]}  d5 {[%clk 0:01:31]} 13. Bxd5+ {[%clk 0:02:38]}  Kf6 {[%clk 0:01:08]} 14. bxc3 {[%clk 0:02:38]}  c6 {[%clk 0:01:02]} 15. Be4 {[%clk 0:02:32]}  Nd7 {[%clk 0:00:55]} 16. Be3 {[%clk 0:02:28]}  Ne5 {[%clk 0:00:55]} 17. f4 {[%clk 0:02:25]}  Ng4 {[%clk 0:00:54]} 18. Bd4+ {[%clk 0:02:25]}  Kf7 {[%clk 0:00:51]} 19. Bxh8 {[%clk 0:02:23]}  Be7 {[%clk 0:00:51]} 20. Bd4 {[%clk 0:02:21]}  Bh4+ {[%clk 0:00:51]} 21. Ke2 {[%clk 0:02:21]}  Be6 {[%clk 0:00:50]} 22. Nf3 {[%clk 0:02:20]}  Bc4+ {[%clk 0:00:50]} 23. Kd2 {[%clk 0:02:18]}  Rd8 {[%clk 0:00:47]} 24. Bd3 {[%clk 0:02:13]}  Bd5 {[%clk 0:00:45]} 25. Rhf1 {[%clk 0:02:09]}  b6 {[%clk 0:00:36]} 26. Ne5+ {[%clk 0:02:09]}  Nxe5 {[%clk 0:00:36]} 27. fxe5+ {[%clk 0:02:10]}  Ke7 {[%clk 0:00:36]} 28. Be3 {[%clk 0:02:05]}  c5 {[%clk 0:00:33]} 29. c4 {[%clk 0:02:00]}  Bxc4 {[%clk 0:00:25]} 30. Rf4 {[%clk 0:02:01]} 1-0


[Site "https://www.chess.com"]

[Event "Titled Tuesday Blitz July 4 Early 2023"]
[White "Tanaka, Taira Tyler"]
[Black "Silva, Pedro Gil Ferreira Da"]
[WhiteFideId "7002351"]
[BlackFideId "1946102"]
[WhiteElo "2581"]
[BlackElo "2364"]
[Result "1-0"]
[Round "3"]
[TimeControl "180+2"]
[Date "2023.07.04"]
[WhiteClock "0:00:29"]
[BlackClock "0:00:09"]
[Board "176"]

1. c4 {[%clk 0:03:00]}  c5 {[%clk 0:02:57]} 2. Nf3 {[%clk 0:03:00]}  Nc6 {[%clk 0:02:55]} 3. Nc3 {[%clk 0:03:01]}  g6 {[%clk 0:02:55]} 4. d4 {[%clk 0:03:01]}  cxd4 {[%clk 0:02:53]} 5. Nxd4 {[%clk 0:03:02]}  Bg7 {[%clk 0:02:53]} 6. Nc2 {[%clk 0:02:59]}  Nf6 {[%clk 0:02:53]} 7. g3 {[%clk 0:02:58]}  O-O {[%clk 0:02:53]} 8. Bg2 {[%clk 0:02:58]}  d6 {[%clk 0:02:52]} 9. O-O {[%clk 0:02:58]}  Bd7 {[%clk 0:02:52]} 10. Ne3 {[%clk 0:02:53]}  a6 {[%clk 0:02:50]} 11. Rb1 {[%clk 0:02:52]}  Rc8 {[%clk 0:02:43]} 12. b3 {[%clk 0:02:52]}  Qa5 {[%clk 0:02:35]} 13. Bd2 {[%clk 0:02:47]}  Qh5 {[%clk 0:02:34]} 14. Ncd5 {[%clk 0:02:38]}  Nxd5 {[%clk 0:02:33]} 15. Nxd5 {[%clk 0:02:37]}  e6 {[%clk 0:02:09]} 16. Nf4 {[%clk 0:02:13]}  Qe5 {[%clk 0:02:02]} 17. Rc1 {[%clk 0:02:10]}  Rfd8 {[%clk 0:01:59]} 18. Bc3 {[%clk 0:02:10]}  Qc5 {[%clk 0:01:46]} 19. Bxg7 {[%clk 0:02:10]}  Kxg7 {[%clk 0:01:45]} 20. Qd2 {[%clk 0:02:10]}  Be8 {[%clk 0:01:42]} 21. Rfd1 {[%clk 0:02:10]}  a5 {[%clk 0:01:32]} 22. h4 {[%clk 0:02:08]}  h6 {[%clk 0:01:30]} 23. e3 {[%clk 0:01:51]}  b5 {[%clk 0:01:06]} 24. Qb2+ {[%clk 0:01:22]}  Kh7 {[%clk 0:00:53]} 25. h5 {[%clk 0:01:20]}  g5 {[%clk 0:00:40]} 26. Be4+ {[%clk 0:01:19]}  Kg8 {[%clk 0:00:41]} 27. Nd3 {[%clk 0:01:12]}  Qb6 {[%clk 0:00:39]} 28. Qf6 {[%clk 0:01:09]}  bxc4 {[%clk 0:00:35]} 29. bxc4 {[%clk 0:00:44]}  d5 {[%clk 0:00:20]} 30. cxd5 {[%clk 0:00:42]}  exd5 {[%clk 0:00:21]} 31. Bf5 {[%clk 0:00:41]}  Rb8 {[%clk 0:00:21]} 32. Qxh6 {[%clk 0:00:38]}  Ne7 {[%clk 0:00:19]} 33. Qxg5+ {[%clk 0:00:38]}  Kf8 {[%clk 0:00:19]} 34. h6 {[%clk 0:00:29]}  Nxf5 {[%clk 0:00:09]} 35. h7 {[%clk 0:00:29]} 1-0


[Site "https://www.chess.com"]

[Event "Titled Tuesday Blitz July 4 Early 2023"]
[White "Bashirli, Saadat"]
[Black "Bilan, Danila"]
[WhiteFideId "13429990"]
[BlackFideId "24161918"]
[WhiteElo "2350"]
[BlackElo "2535"]
[Result "0-1"]
[Round "3"]
[TimeControl "180+2"]
[Date "2023.07.04"]
[WhiteClock "0:00:12"]
[BlackClock "0:00:10"]
[Board "177"]

1. d4 {[%clk 0:03:00]}  d5 {[%clk 0:02:59]} 2. e3 {[%clk 0:03:01]}  c5 {[%clk 0:02:59]} 3. c3 {[%clk 0:02:59]}  Qc7 {[%clk 0:02:57]} 4. f4 {[%clk 0:02:58]}  Nf6 {[%clk 0:02:56]} 5. Bd3 {[%clk 0:02:54]}  g6 {[%clk 0:02:52]} 6. Nf3 {[%clk 0:02:53]}  Bg7 {[%clk 0:02:52]} 7. O-O {[%clk 0:02:51]}  O-O {[%clk 0:02:50]} 8. Nbd2 {[%clk 0:02:47]}  cxd4 {[%clk 0:02:50]} 9. cxd4 {[%clk 0:02:48]}  Nc6 {[%clk 0:02:45]} 10. a3 {[%clk 0:02:46]}  Bf5 {[%clk 0:02:41]} 11. Qe2 {[%clk 0:02:44]}  Rac8 {[%clk 0:02:32]} 12. b4 {[%clk 0:02:39]}  Nb8 {[%clk 0:01:52]} 13. Bb2 {[%clk 0:02:16]}  Bxd3 {[%clk 0:01:51]} 14. Qxd3 {[%clk 0:02:17]}  Qc2 {[%clk 0:01:51]} 15. Qxc2 {[%clk 0:02:15]}  Rxc2 {[%clk 0:01:52]} 16. Rab1 {[%clk 0:02:12]}  Nbd7 {[%clk 0:01:34]} 17. h3 {[%clk 0:02:09]}  Rfc8 {[%clk 0:01:31]} 18. Rfc1 {[%clk 0:02:05]}  Nb6 {[%clk 0:01:26]} 19. Nb3 {[%clk 0:01:56]}  Na4 {[%clk 0:01:17]} 20. Ba1 {[%clk 0:01:49]}  b6 {[%clk 0:01:13]} 21. Ne1 {[%clk 0:01:43]}  Rxc1 {[%clk 0:00:54]} 22. Rxc1 {[%clk 0:01:44]}  Rxc1 {[%clk 0:00:53]} 23. Nxc1 {[%clk 0:01:45]}  Ne4 {[%clk 0:00:51]} 24. Ned3 {[%clk 0:01:37]}  Kf8 {[%clk 0:00:44]} 25. Nb3 {[%clk 0:01:35]}  Ke8 {[%clk 0:00:37]} 26. Nf2 {[%clk 0:01:34]}  Nd6 {[%clk 0:00:28]} 27. Nd2 {[%clk 0:01:30]}  Kd7 {[%clk 0:00:26]} 28. Nd1 {[%clk 0:01:18]}  Kc6 {[%clk 0:00:24]} 29. Kf2 {[%clk 0:00:51]}  Kb5 {[%clk 0:00:23]} 30. Bb2 {[%clk 0:00:42]}  Nc4 {[%clk 0:00:21]} 31. Bc1 {[%clk 0:00:31]}  Nxd2 {[%clk 0:00:16]} 32. Bxd2 {[%clk 0:00:32]}  Kc4 {[%clk 0:00:17]} 33. Ke2 {[%clk 0:00:31]}  Kb3 {[%clk 0:00:17]} 34. Bc1 {[%clk 0:00:29]}  Kc2 {[%clk 0:00:16]} 35. Bd2 {[%clk 0:00:28]}  e6 {[%clk 0:00:16]} 36. g4 {[%clk 0:00:28]}  Bf8 {[%clk 0:00:12]} 37. h4 {[%clk 0:00:23]}  Be7 {[%clk 0:00:12]} 38. h5 {[%clk 0:00:23]}  gxh5 {[%clk 0:00:12]} 39. gxh5 {[%clk 0:00:23]}  f5 {[%clk 0:00:12]} 40. Ke1 {[%clk 0:00:20]}  Nb2 {[%clk 0:00:10]} 41. Nxb2 {[%clk 0:00:17]}  Kxb2 {[%clk 0:00:11]} 42. a4 {[%clk 0:00:17]}  Kb3 {[%clk 0:00:12]} 43. a5 {[%clk 0:00:17]}  Bxb4 {[%clk 0:00:11]} 44. Bxb4 {[%clk 0:00:04]}  Kxb4 {[%clk 0:00:08]} 45. axb6 {[%clk 0:00:05]}  axb6 {[%clk 0:00:09]} 46. Kf2 {[%clk 0:00:06]}  Kc3 {[%clk 0:00:08]} 47. Kg3 {[%clk 0:00:05]}  h6 {[%clk 0:00:07]} 48. Kh4 {[%clk 0:00:06]}  Kd3 {[%clk 0:00:08]} 49. Kg3 {[%clk 0:00:06]}  Kxe3 {[%clk 0:00:08]} 50. Kh4 {[%clk 0:00:07]}  Kxf4 {[%clk 0:00:08]} 51. Kh3 {[%clk 0:00:07]}  b5 {[%clk 0:00:08]} 52. Kh4 {[%clk 0:00:08]}  b4 {[%clk 0:00:09]} 53. Kh3 {[%clk 0:00:09]}  b3 {[%clk 0:00:09]} 54. Kh4 {[%clk 0:00:10]}  b2 {[%clk 0:00:10]} 55. Kh3 {[%clk 0:00:11]}  b1=Q {[%clk 0:00:10]} 56. Kh4 {[%clk 0:00:12]}  Qh1# {[%clk 0:00:10]} 0-1


[Site "https://www.chess.com"]

[Event "Titled Tuesday Blitz July 4 Early 2023"]
[White "Lehtosaari, Mauri"]
[Black "SicilianPanzer"]
[WhiteFideId "501999"]
[WhiteElo "2511"]
[BlackElo "2251"]
[Result "1-0"]
[Round "3"]
[TimeControl "180+2"]
[Date "2023.07.04"]
[WhiteClock "0:01:23"]
[BlackClock "0:00:37"]
[Board "181"]

1. d4 {[%clk 0:02:58]}  Nf6 {[%clk 0:02:58]} 2. Nf3 {[%clk 0:02:58]}  e6 {[%clk 0:02:57]} 3. Bg5 {[%clk 0:02:58]}  d5 {[%clk 0:02:51]} 4. Nbd2 {[%clk 0:02:58]}  c5 {[%clk 0:02:51]} 5. e3 {[%clk 0:02:59]}  Nc6 {[%clk 0:02:51]} 6. c3 {[%clk 0:02:58]}  Be7 {[%clk 0:02:34]} 7. Bd3 {[%clk 0:02:54]}  O-O {[%clk 0:02:33]} 8. O-O {[%clk 0:02:53]}  b6 {[%clk 0:02:30]} 9. Ne5 {[%clk 0:02:52]}  Nxe5 {[%clk 0:02:00]} 10. dxe5 {[%clk 0:02:51]}  Nd7 {[%clk 0:01:59]} 11. Bxe7 {[%clk 0:02:42]}  Qxe7 {[%clk 0:01:58]} 12. f4 {[%clk 0:02:34]}  Rd8 {[%clk 0:01:26]} 13. Qh5 {[%clk 0:02:21]}  Nf8 {[%clk 0:01:23]} 14. Rf3 {[%clk 0:02:20]}  a5 {[%clk 0:01:09]} 15. Bxh7+ {[%clk 0:02:02]}  Nxh7 {[%clk 0:01:03]} 16. Rh3 {[%clk 0:02:02]}  Kf8 {[%clk 0:01:00]} 17. Qxh7 {[%clk 0:02:00]}  Ke8 {[%clk 0:00:58]} 18. Qxg7 {[%clk 0:01:59]}  Ba6 {[%clk 0:00:55]} 19. Nf3 {[%clk 0:01:42]}  Bd3 {[%clk 0:00:37]} 20. Qf6 {[%clk 0:01:23]} 1-0


[Site "https://www.chess.com"]